fUST/lending_fUST_20260107
["ID","MTS","AMOUNT","RATE_DAILY","PERIOD"]
[400570255,1767727844785,-24466.81,0.000276,2]
[400570257,1767727844796,-564.0,0.00027671,14]
[400570259,1767727844808,-1000.0,0.0002777,30]
[400570261,1767727844819,-1000.0,0.0002777,30]
[400570263,1767727844830,-1000.0,0.00027777,5]
[400570266,1767727844842,-688.49839244,0.00027861,2]
[400570269,1767727844854,-3326.07919052,0.00027861,2]
[400570271,1767727844865,-564.0,0.00027945,14]
[400570273,1767727844876,-1000.0,0.00027945,5]
[400570275,1767727844887,-250.0,0.00027945,5]
[400570277,1767727844898,-250.0,0.00027945,5]
[400570281,1767727844909,-750.0,0.00027945,5]
[400570283,1767727844921,-15316.1684334,0.00028,2]
[400570285,1767727844932,-519.93395126,0.00028,2]
[400570287,1767727844943,-1019.0,0.00028,2]
[400570289,1767727844955,-2000.0,0.00028,7]
[400570291,1767727844967,-3357.6,0.000281,7]
[400570294,1767727844978,-2874.83428113,0.000281,7]
[400570296,1767727844989,-566.14976646,0.00028219,2]
[400570298,1767727845002,-564.0,0.00028219,14]
[400570300,1767727845014,-628.0,0.00028226,2]
[400570303,1767727845026,-2145.0,0.00028226,2]
[400570304,1767727845035,-1365.0,0.00028226,2]
[400570306,1767727845044,-723.853,0.00028226,2]
[400570308,1767727845053,-194.752,0.00028226,2]
[400570310,1767727845063,-417.0,0.00028226,2]
[400570312,1767727845072,-210.0,0.00028247,28]
[400570332,1767727845236,-713.97283296,0.00028409,2]
[400570334,1767727845248,-3449.14412057,0.00028409,2]
[400570336,1767727845257,-564.0,0.00028493,14]
[400570338,1767727845266,-850.0,0.00028493,5]
[400570340,1767727845275,-1344.52633851,0.00028493,5]
[400570342,1767727845285,-350.0,0.00028493,5]
[400570344,1767727845294,-350.0,0.00028493,5]
[400570346,1767727845303,-240.04,0.000285,7]
[400570348,1767727845312,-284.75,0.000285,7]
[400570350,1767727845321,-80386.29981639,0.000285,7]
[400570352,1767727845330,-26867.53519307,0.0002876,2]
[400570354,1767727845339,-28358.47353222,0.0002876,20]
[400570355,1767727845348,-4000.0,0.0002876,5]
[400570357,1767727845358,-19132.26998272,0.0002876,2]
[400570359,1767727845368,-1825.86,0.00028767,4]
[400570361,1767727845378,-166.0,0.00028767,14]
[400570363,1767727845387,-564.0,0.00028767,14]
[400570365,1767727845397,-564.0,0.00028767,14]
[400570367,1767727845406,-168.07768,0.00028767,60]
[400570369,1767727845415,-172.37105898,0.000288,7]
[400570371,1767727845424,-11034.61992398,0.00028901,2]
[400570373,1767727845435,-740.38982778,0.00028957,2]
[400570375,1767727845444,-3576.76245303,0.00028957,2]
[400570377,1767727845453,-890.13787622,0.00029,2]
[400570379,1767727845462,-1019.0,0.00029,2]
[400570381,1767727845471,-2000.0,0.00029,7]
[400570383,1767727845482,-450.0,0.00029041,5]
[400570385,1767727845491,-450.0,0.00029041,5]
[400570387,1767727845500,-950.0,0.00029041,5]
[400570388,1767727845510,-203.5,0.00029213,3]
[400570390,1767727845519,-24466.81,0.000293,2]
[400570392,1767727845529,-777.0,0.000295,2]
[400570394,1767727845538,-767.7842514,0.00029505,2]
[400570396,1767727845548,-3709.10266379,0.00029505,2]
[400570398,1767727845560,-1050.0,0.00029589,5]
[400570400,1767727845570,-550.0,0.00029589,5]
[400570403,1767727845580,-550.0,0.00029589,5]
[400570405,1767727845589,-3357.6,0.000298,7]
[400570407,1767727845600,-564.0,0.00029918,14]
[400570409,1767727845609,-38000.0,0.00029978,10]
[400570411,1767727845618,-151.0,0.00029986,7]
[400570412,1767727845628,-151.0,0.00029986,7]
[400570414,1767727845637,-38000.0,0.00029986,10]
[400570416,1767727845646,-301.382551,0.00029995,7]
[400570418,1767727845655,-151.0,0.00029995,7]
[400570420,1767727845664,-38000.0,0.00029995,10]
[400570422,1767727845674,-250.0,0.0003,7]
[400570424,1767727845683,-250.0,0.0003,7]
[400570426,1767727845692,-250.0,0.0003,7]
[400570427,1767727845702,-250.0,0.0003,7]
[400570429,1767727845710,-250.0,0.0003,7]
[400570431,1767727845719,-250.0,0.0003,7]
[400570433,1767727845728,-206.8,0.0003,7]
[400570435,1767727845738,-412.68505795,0.0003,10]
[400570437,1767727845747,-205.02791284,0.0003,30]
[400570439,1767727845756,-1539.161054,0.0003,7]
[400570441,1767727845766,-17929.07697112,0.0003,2]
[400570443,1767727845775,-1041.66666667,0.0003,10]
[400570445,1767727845784,-684.43602892,0.0003,30]
[400570446,1767727845793,-1125.0,0.0003,5]
[400570448,1767727845802,-165.46,0.0003,5]
[400570450,1767727845811,-300.0,0.0003,60]
[400570452,1767727845821,-269.64837879,0.0003,2]
[400570454,1767727845831,-6092.02511956,0.0003,7]
[400570456,1767727845841,-1019.0,0.0003,7]
[400570458,1767727845850,-2000.0,0.0003,7]
[400570460,1767727845860,-38000.0,0.00030004,10]
[400570462,1767727845871,-151.893811,0.00030004,7]
[400570464,1767727845882,-156.236454,0.00030004,7]
[400570466,1767727845892,-262.607866,0.00030004,7]
[400570468,1767727845901,-151.0,0.00030004,7]
[400570470,1767727845911,-251.543708,0.00030004,7]
[400570472,1767727845920,-151.0,0.00030004,7]
[400570474,1767727845929,-251.543708,0.00030004,7]
[400570476,1767727845939,-151.0,0.00030004,7]
[400570478,1767727845948,-251.543708,0.00030004,7]
[400570480,1767727845958,-151.0,0.00030004,7]
[400570482,1767727845968,-251.543708,0.00030004,7]
[400570484,1767727845977,-151.0,0.00030004,7]
[400570486,1767727845986,-151.0,0.00030004,7]
[400570488,1767727845995,-151.0,0.00030004,7]
[400570490,1767727846004,-155.649023,0.00030004,7]
[400570492,1767727846013,-257.45092,0.00030004,7]
[400570493,1767727846022,-151.0,0.00030004,7]
[400570495,1767727846032,-151.0,0.00030004,7]
[400570497,1767727846041,-152.72294,0.00030004,7]
[400570499,1767727846050,-152.500089,0.00030004,7]
[400570501,1767727846060,-151.0,0.00030004,7]
[400570503,1767727846071,-151.0,0.00030004,7]
[400570505,1767727846080,-151.0,0.00030004,7]
[400570507,1767727846089,-151.0,0.00030004,7]
[400570509,1767727846099,-151.0,0.00030004,7]
[400570511,1767727846109,-151.0,0.00030004,7]
[400570513,1767727846119,-655.31642,0.00030004,7]
[400570515,1767727846128,-151.0,0.00030004,7]
[400570517,1767727846137,-655.31642,0.00030004,7]
[400570519,1767727846146,-151.0,0.00030004,7]
[400570521,1767727846155,-655.31642,0.00030004,7]
[400570523,1767727846163,-655.31642,0.00030004,7]
[400570525,1767727846173,-151.0,0.00030004,7]
[400570527,1767727846182,-151.0,0.00030004,7]
[400570529,1767727846191,-151.0,0.00030004,7]
[400570531,1767727846200,-151.0,0.00030004,7]
[400570532,1767727846209,-151.0,0.00030004,7]
[400570534,1767727846218,-151.0,0.00030004,7]
[400570536,1767727846227,-151.0,0.00030004,7]
[400570538,1767727846237,-194.712966,0.00030004,7]
[400570540,1767727846245,-194.712966,0.00030004,7]
[400570542,1767727846255,-194.712966,0.00030004,7]
[400570544,1767727846264,-194.712966,0.00030004,7]
[400570546,1767727846273,-151.0,0.00030004,7]
[400570548,1767727846282,-179.970961,0.00030004,7]
[400570550,1767727846291,-287.718466,0.00030004,7]
[400570552,1767727846300,-151.0,0.00030004,7]
[400570554,1767727846309,-151.0,0.00030004,7]
[400570556,1767727846319,-258.099142,0.00030004,7]
[400570558,1767727846328,-258.099142,0.00030004,7]
[400570560,1767727846338,-258.099142,0.00030004,7]
[400570562,1767727846347,-258.099142,0.00030004,7]
[400570564,1767727846357,-151.0,0.00030004,7]
[400570566,1767727846366,-318.562086,0.00030004,7]
[400570568,1767727846375,-318.562086,0.00030004,7]
[400570570,1767727846385,-151.0,0.00030004,7]
[400570572,1767727846394,-318.562086,0.00030004,7]
[400570574,1767727846404,-151.0,0.00030004,7]
[400570576,1767727846413,-318.562086,0.00030004,7]
[400570578,1767727846423,-151.0,0.00030004,7]
[400570580,1767727846433,-151.0,0.00030004,7]
[400570582,1767727846443,-151.0,0.00030004,7]
[400570584,1767727846451,-151.0,0.00030004,7]
[400570586,1767727846461,-151.0,0.00030004,7]
[400570588,1767727846470,-151.0,0.00030004,7]
[400570590,1767727846481,-178.486087,0.00030004,7]
[400570591,1767727846491,-178.486087,0.00030004,7]
[400570593,1767727846500,-178.486087,0.00030004,7]
[400570595,1767727846510,-178.486087,0.00030004,7]
[400570597,1767727846519,-155.50541,0.00030004,7]
[400570599,1767727846530,-166.442051,0.00030004,7]
[400570601,1767727846540,-166.442051,0.00030004,7]
[400570604,1767727846551,-166.442051,0.00030004,7]
[400570606,1767727846561,-166.442051,0.00030004,7]
[400570607,1767727846571,-151.0,0.00030004,7]
[400570609,1767727846580,-151.0,0.00030004,7]
[400570611,1767727846590,-258.528484,0.00030004,7]
[400570613,1767727846600,-38000.0,0.00030013,10]
[400570615,1767727846609,-151.0,0.00030013,7]
[400570617,1767727846619,-151.0,0.00030013,7]
[400570620,1767727846628,-177.092119,0.00030013,7]
[400570623,1767727846637,-151.0,0.00030013,7]
[400570624,1767727846648,-151.0,0.00030013,7]
[400570625,1767727846657,-207.414308,0.00030013,7]
[400570626,1767727846666,-153.79045,0.00030013,7]
[400570627,1767727846676,-409.150764,0.00030013,7]
[400570628,1767727846685,-409.150764,0.00030013,7]
[400570629,1767727846695,-409.150764,0.00030013,7]
[400570630,1767727846705,-409.150764,0.00030013,7]
[400570631,1767727846715,-151.0,0.00030013,7]
[400570632,1767727846726,-501.631256,0.00030013,7]
[400570633,1767727846735,-151.0,0.00030013,7]
[400570634,1767727846745,-501.631256,0.00030013,7]
[400570635,1767727846755,-501.631256,0.00030013,7]
[400570636,1767727846765,-501.631256,0.00030013,7]
[400570637,1767727846775,-38000.0,0.00030022,10]
[400570638,1767727846784,-38000.0,0.0003003,10]
[400570639,1767727846794,-151.0,0.00030039,7]
[400570640,1767727846803,-38000.0,0.00030039,10]
[400570641,1767727846814,-212.54773642,0.00030047,10]
[400570642,1767727846824,-38000.0,0.00030048,10]
[400570643,1767727846834,-796.19226871,0.00030053,2]
[400570644,1767727846843,-3846.33946235,0.00030053,2]
[400570645,1767727846852,-38000.0,0.00030057,10]
[400570646,1767727846862,-38000.0,0.00030066,10]
[400570648,1767727846871,-38000.0,0.00030074,10]
[400570650,1767727846882,-151.0,0.00030083,7]
[400570652,1767727846891,-151.0,0.00030083,7]
[400570654,1767727846901,-38000.0,0.00030083,10]
[400570656,1767727846911,-38000.0,0.00030092,10]
[400570658,1767727846920,-38000.0,0.00030101,10]
[400570660,1767727846929,-38000.0,0.0003011,10]
[400570662,1767727846939,-151.0,0.0003011,7]
[400570664,1767727846948,-251.543708,0.0003011,7]
[400570666,1767727846957,-151.0,0.0003011,7]
[400570668,1767727846966,-251.543708,0.0003011,7]
[400570670,1767727846976,-290.698693,0.0003011,7]
[400570672,1767727846985,-251.543708,0.0003011,7]
[400570674,1767727846995,-151.0,0.0003011,7]
[400570676,1767727847005,-251.543708,0.0003011,7]
[400570678,1767727847015,-151.0,0.0003011,7]
[400570680,1767727847024,-151.0,0.0003011,7]
[400570682,1767727847033,-151.418138,0.0003011,7]
[400570685,1767727847043,-151.0,0.0003011,7]
[400570687,1767727847053,-151.0,0.0003011,7]
[400570689,1767727847063,-151.0,0.0003011,7]
[400570690,1767727847072,-153.976582,0.0003011,7]
[400570692,1767727847082,-151.0,0.0003011,7]
[400570694,1767727847091,-151.0,0.0003011,7]
[400570696,1767727847101,-151.0,0.0003011,7]
[400570698,1767727847109,-298.535992,0.0003011,7]
[400570700,1767727847118,-655.31642,0.0003011,7]
[400570702,1767727847129,-151.0,0.0003011,7]
[400570704,1767727847138,-655.31642,0.0003011,7]
[400570706,1767727847148,-284.613576,0.0003011,7]
[400570708,1767727847157,-655.31642,0.0003011,7]
[400570710,1767727847167,-655.31642,0.0003011,7]
[400570712,1767727847177,-151.0,0.0003011,7]
[400570714,1767727847188,-151.0,0.0003011,7]
[400570716,1767727847197,-151.0,0.0003011,7]
[400570718,1767727847207,-298.766655,0.0003011,7]
[400570720,1767727847216,-151.0,0.0003011,7]
[400570722,1767727847225,-151.0,0.0003011,7]
[400570724,1767727847234,-151.0,0.0003011,7]
[400570726,1767727847243,-194.712966,0.0003011,7]
[400570728,1767727847252,-194.712966,0.0003011,7]
[400570730,1767727847261,-194.712966,0.0003011,7]
[400570732,1767727847270,-194.712966,0.0003011,7]
[400570734,1767727847279,-151.0,0.0003011,7]
[400570736,1767727847288,-151.0,0.0003011,7]
[400570738,1767727847297,-151.0,0.0003011,7]
[400570740,1767727847307,-258.099142,0.0003011,7]
[400570742,1767727847316,-258.099142,0.0003011,7]
[400570744,1767727847325,-258.099142,0.0003011,7]
[400570746,1767727847336,-258.099142,0.0003011,7]
[400570748,1767727847345,-159.089641,0.0003011,7]
[400570750,1767727847354,-318.562086,0.0003011,7]
[400570752,1767727847363,-318.562086,0.0003011,7]
[400570754,1767727847372,-151.0,0.0003011,7]
[400570756,1767727847382,-318.562086,0.0003011,7]
[400570758,1767727847391,-151.0,0.0003011,7]
[400570760,1767727847401,-318.562086,0.0003011,7]
[400570762,1767727847410,-151.0,0.0003011,7]
[400570764,1767727847419,-151.0,0.0003011,7]
[400570766,1767727847429,-151.0,0.0003011,7]
[400570768,1767727847439,-151.0,0.0003011,7]
[400570770,1767727847448,-151.0,0.0003011,7]
[400570772,1767727847457,-245.644172,0.0003011,7]
[400570774,1767727847466,-178.486087,0.0003011,7]
[400570776,1767727847476,-178.486087,0.0003011,7]
[400570778,1767727847488,-178.486087,0.0003011,7]
[400570780,1767727847497,-178.486087,0.0003011,7]
[400570782,1767727847506,-166.442051,0.0003011,7]
[400570784,1767727847515,-166.442051,0.0003011,7]
[400570786,1767727847525,-166.442051,0.0003011,7]
[400570788,1767727847535,-166.442051,0.0003011,7]
[400570790,1767727847544,-151.0,0.0003011,7]
[400570792,1767727847555,-151.0,0.0003011,7]
[400570794,1767727847566,-151.0,0.00030118,7]
[400570796,1767727847576,-151.0,0.00030118,7]
[400570798,1767727847585,-151.0,0.00030118,7]
[400570800,1767727847595,-151.0,0.00030118,7]
[400570802,1767727847604,-200.0,0.00030118,7]
[400570804,1767727847613,-200.0,0.00030118,7]
[400570806,1767727847622,-200.0,0.00030118,7]
[400570808,1767727847631,-200.0,0.00030118,7]
[400570810,1767727847641,-200.0,0.00030118,7]
[400570812,1767727847650,-200.0,0.00030118,7]
[400570814,1767727847659,-409.150764,0.00030118,7]
[400570816,1767727847668,-409.150764,0.00030118,7]
[400570818,1767727847679,-409.150764,0.00030118,7]
[400570821,1767727847688,-409.150764,0.00030118,7]
[400570822,1767727847698,-151.0,0.00030118,7]
[400570825,1767727847708,-501.631256,0.00030118,7]
[400570827,1767727847717,-151.0,0.00030118,7]
[400570828,1767727847726,-501.631256,0.00030118,7]
[400570831,1767727847736,-501.631256,0.00030118,7]
[400570833,1767727847745,-501.631256,0.00030118,7]
[400570835,1767727847754,-38000.0,0.00030118,10]
[400570837,1767727847763,-38000.0,0.00030127,10]
[400570839,1767727847773,-1255.08464417,0.0003013,2]
[400570841,1767727847782,-38000.0,0.00030136,10]
[400570843,1767727847791,-1825.86,0.00030136,6]
[400570844,1767727847801,-1150.0,0.00030137,5]
[400570846,1767727847810,-650.0,0.00030137,5]
[400570848,1767727847820,-650.0,0.00030137,5]
[400570850,1767727847829,-261.65588748,0.00030137,120]
[400570852,1767727847839,-566.0,0.00030205,14]
[400570855,1767727847849,-607.91491317,0.00030219,2]
[400570856,1767727847858,-11034.61992398,0.00030301,2]
[400570858,1767727847867,-160.0,0.00030438,40]
[400570860,1767727847876,-8577.47952728,0.00030501,2]
[400570862,1767727847885,-445.0,0.00030547,30]
[400570864,1767727847895,-723.0,0.00030547,30]
[400570866,1767727847905,-563.0,0.00030547,30]
[400570868,1767727847914,-1000.0,0.00030547,30]
[400570870,1767727847924,-1000.0,0.00030547,30]
[400570872,1767727847933,-579.0,0.00030547,30]
[400570874,1767727847942,-179.008,0.00030575,26]
[400570876,1767727847951,-184.7045463,0.00030575,26]
[400570878,1767727847961,-240.04,0.000306,7]
[400570880,1767727847970,-284.75,0.000306,7]
[400570882,1767727847979,-369.71292049,0.00030601,2]
[400570884,1767727847988,-3988.65402246,0.00030601,2]
[400570886,1767727847999,-1297.73266776,0.00030685,5]
[400570888,1767727848008,-750.0,0.00030685,5]
[400570890,1767727848017,-750.0,0.00030685,5]
[400570892,1767727848027,-15905.49,0.000307,6]
[400570894,1767727848037,-2827.11,0.000308,14]
[400570896,1767727848047,-4451.82159782,0.000308,2]
[400570921,1767727848270,-475.0,0.00024683,30]
[400570923,1767727848279,-4087.42876137,0.000308,2]
[400570941,1767727848442,-151.0,0.00013589,2]
[400570943,1767727848457,-151.0,0.00013589,2]
[400570945,1767727848466,-176.775201,0.00017813,7]
[400570947,1767727848477,-225.73170478,0.00019076,10]
[400570949,1767727848488,-289.12802555,0.00020339,12]
[400570951,1767727848498,-449.35584774,0.00022866,17]
[400570953,1767727848508,-164.05427,0.00024,2]
[400570955,1767727848518,-475.0,0.00024683,30]
[400570957,1767727848527,-475.0,0.00024683,30]
[400570959,1767727848536,-475.0,0.00024683,30]
[400570961,1767727848545,-475.0,0.00024683,30]
[400570963,1767727848555,-151.0,0.000249,2]
[400570965,1767727848565,-645.88366206,0.00025392,21]
[400570967,1767727848574,-504.0,0.00025891,2]
[400570969,1767727848583,-3.07128887,0.00026655,24]
[400571009,1767727848962,-151.0,0.00013589,2]
[400571010,1767727848971,-260.81071806,0.00013589,2]
[400571012,1767727848981,-364.201608,0.00021602,14]
[400571014,1767727848990,-475.0,0.00024683,30]
[400571016,1767727849000,-475.0,0.00024683,30]
[400571018,1767727849009,-475.0,0.00024683,30]
[400571020,1767727849018,-475.0,0.00024683,30]
[400571022,1767727849027,-151.0,0.000249,2]
[400571024,1767727849036,-151.0,0.000249,2]
[400571026,1767727849046,-151.0,0.000249,2]
[400571028,1767727849055,-752.78234938,0.00026655,24]
[400571030,1767727849064,-872.93042702,0.00027918,26]
[400571032,1767727849073,-996.70619972,0.00029181,28]
[400571034,1767727849082,-1126.83624947,0.00030444,31]
[400571036,1767727849091,-15927.55964081,0.000308,2]
[400571038,1767727849101,-1041.66666667,0.000309,10]
[400571040,1767727849110,-203.5,0.0003091,4]
[400571042,1767727849119,-896.69,0.00030958,30]
[400571044,1767727849129,-305.95748553,0.0003099,2]
[400571046,1767727849138,-223.16224092,0.00031,120]
[400571048,1767727849147,-194.20318294,0.00031,120]
[400571050,1767727849156,-194.50754029,0.00031,120]
[400571052,1767727849165,-172.33135592,0.00031,120]
[400571054,1767727849174,-287.40793029,0.00031,120]
[400571056,1767727849184,-162.45140046,0.00031,120]
[400571058,1767727849193,-163.4725449,0.00031,120]
[400571060,1767727849202,-162.07078001,0.00031,120]
[400571062,1767727849211,-178.68711888,0.00031,120]
[400571064,1767727849220,-180.65011172,0.00031,120]
[400571066,1767727849229,-180.06087287,0.00031,120]
[400571068,1767727849238,-264.42543527,0.00031,120]
[400571070,1767727849247,-1041.66666667,0.00031,7]
[400571072,1767727849256,-1909.38063645,0.00031,120]
[400571074,1767727849266,-6059.60285396,0.00031,30]
[400571076,1767727849275,-1019.0,0.00031,7]
[400571078,1767727849284,-2000.0,0.00031,7]
[400571080,1767727849293,-564.0,0.00031068,14]
[400571082,1767727849302,-564.0,0.00031068,14]
[400571084,1767727849312,-14320.34037568,0.0003112,2]
[400571086,1767727849322,-628.0,0.00031226,2]
[400571088,1767727849331,-2145.0,0.00031226,2]
[400571090,1767727849340,-1365.0,0.00031226,2]
[400571092,1767727849349,-409.36761311,0.00031226,2]
[400571093,1767727849360,-304.63238689,0.00031226,2]
[400571094,1767727849369,-178.0,0.00031226,2]
[400571095,1767727849378,-417.0,0.00031226,2]
[400571096,1767727849387,-850.0,0.00031233,5]
[400571097,1767727849396,-850.0,0.00031233,5]
[400571098,1767727849405,-234.0887059,0.00031506,31]
[400571099,1767727849417,-662.6012941,0.00031506,31]
[400571100,1767727849427,-1825.86,0.00031506,8]
[400571101,1767727849435,-710.22,0.000316,2]
[400571102,1767727849445,-10820.30554857,0.00031702,2]
[400571103,1767727849467,-214.31437541,0.00031702,2]
[400571104,1767727849477,-1263.0242044,0.00031708,32]
[400571105,1767727849490,-950.0,0.00031781,5]
[400571106,1767727849500,-424.40376074,0.00031781,5]
[400571107,1767727849509,-3357.6,0.000318,7]
[400571108,1767727849518,-223.16224092,0.000319,120]
[400571109,1767727849529,-194.50754029,0.000319,120]
[400571110,1767727849538,-172.33135592,0.000319,120]
[400571111,1767727849547,-287.40793029,0.000319,120]
[400571113,1767727849558,-162.45140046,0.000319,120]
[400571115,1767727849567,-180.06087287,0.000319,120]
[400571117,1767727849576,-534.93,0.000319,2]
[400571119,1767727849586,-23507.23385092,0.000319,2]
[400571121,1767727849597,-1534.79143597,0.000319,2]
[400571540,1767728854274,155.0,5.98e-05,2]
[400571637,1767729032287,-254.97869122,0.00011585,2]
[400571638,1767729032298,-583.0,0.00011585,2]
[400571640,1767729032309,-525.85227063,0.00011981,2]
[400571642,1767729032319,-500.0,0.00012102,2]
[400571644,1767729032330,-300.0,0.00012327,2]
[400571646,1767729032341,-300.0,0.00012327,2]
[400571647,1767729032351,-1200.0,0.00012327,2]
[400571649,1767729032363,-300.0,0.00012327,2]
[400571650,1767729032373,-500.0,0.00012328,2]
[400571651,1767729032383,-500.0,0.00012328,2]
[400571653,1767729032394,-500.0,0.00012328,2]
[400571654,1767729032404,-391.68424295,0.00012328,2]
[400571655,1767729032414,-500.0,0.00012328,2]
[400571656,1767729032425,-500.0,0.00012328,2]
[400571657,1767729032435,-500.0,0.00012328,2]
[400571658,1767729032446,-500.0,0.00012328,2]
[400571659,1767729032457,-500.0,0.00012328,2]
[400571660,1767729032467,-500.0,0.00012328,2]
[400571661,1767729032476,-360.47175307,0.00012328,2]
[400571662,1767729032486,-500.0,0.00012328,2]
[400571663,1767729032497,-500.0,0.00012328,2]
[400571664,1767729032509,-153.83949728,0.00012328,2]
[400571665,1767729032519,-500.0,0.00012328,2]
[400571667,1767729032529,-500.0,0.00012328,2]
[400571669,1767729032539,-594.37977224,0.00012328,2]
[400571671,1767729032548,-500.0,0.00012328,2]
[400571673,1767729032558,-500.0,0.00012328,2]
[400571675,1767729032568,-500.0,0.00012328,2]
[400571677,1767729032578,-500.0,0.00012328,2]
[400571679,1767729032587,-500.0,0.00012328,2]
[400571681,1767729032596,-500.0,0.00012328,2]
[400571683,1767729032606,-500.0,0.00012328,2]
[400571685,1767729032616,-500.0,0.00012328,2]
[400571687,1767729032626,-500.0,0.00012328,2]
[400571688,1767729032636,-500.0,0.00012328,2]
[400571689,1767729032646,-397.08451922,0.00012328,2]
[400571690,1767729032656,-500.0,0.00012328,2]
[400571691,1767729032666,-500.0,0.00012328,2]
[400571692,1767729032676,-500.0,0.00012328,2]
[400571693,1767729032686,-499.99999999,0.00012328,2]
[400571694,1767729032696,-500.0,0.00012328,2]
[400571695,1767729032707,-500.0,0.00012328,2]
[400571696,1767729032717,-500.0,0.00012328,2]
[400571697,1767729032727,-500.0,0.00012328,2]
[400571698,1767729032738,-500.0,0.00012328,2]
[400571699,1767729032748,-633.75994414,0.00012328,2]
[400571700,1767729032758,-166.04219691,0.00012328,2]
[400571701,1767729032768,-300.0,0.00012328,2]
[400571702,1767729032778,-290.82034444,0.00012328,2]
[400571703,1767729032789,-279.0,0.00012329,2]
[400571704,1767729032799,-232.5,0.00012329,2]
[400571705,1767729032812,-193.75,0.00012329,2]
[400571706,1767729032823,-161.46,0.00012329,2]
[400571707,1767729032833,-807.33,0.00012329,2]
[400571708,1767729032843,-50000.0,0.00012329,2]
[400571709,1767729032855,-500.0,0.00012329,2]
[400571710,1767729032867,-615768.52209466,0.00012524,2]
[400571711,1767729032880,-838.73973918,0.00012524,2]
[400571716,1767729038466,-5000.0,0.00011981,2]
[400571717,1767729038479,-383392.73816616,0.00012524,2]
[400571718,1767729038491,-166.66666668,0.00012525,2]
[400571721,1767729038505,-564.51499178,0.00012603,2]
[400571723,1767729038519,-500.0,0.00012623,2]
[400571726,1767729038533,-833.85207825,0.00012623,2]
[400571728,1767729038547,-368.55955406,0.00012623,2]
[400571730,1767729038558,-833.85207825,0.00012623,2]
[400571732,1767729038568,-833.85207825,0.00012623,2]
[400571735,1767729038580,-833.85207825,0.00012623,2]
[400571737,1767729038591,-500.0,0.00012623,2]
[400571739,1767729038602,-833.85207825,0.00012623,2]
[400571741,1767729038616,-833.85207825,0.00012623,2]
[400571744,1767729038629,-833.85207825,0.00012623,2]
[400571746,1767729038641,-833.85207825,0.00012623,2]
[400571748,1767729038652,-833.85207825,0.00012623,2]
[400571750,1767729038663,-500.0,0.00012623,2]
[400571753,1767729038675,-833.85207825,0.00012623,2]
[400571755,1767729038687,-387.49734077,0.00012623,2]
[400571757,1767729038701,-833.85207825,0.00012623,2]
[400571759,1767729038712,-833.85207825,0.00012623,2]
[400571762,1767729038724,-833.85207825,0.00012623,2]
[400571764,1767729038736,-833.85207825,0.00012623,2]
[400571766,1767729038748,-833.85207825,0.00012623,2]
[400571768,1767729038759,-833.85207825,0.00012623,2]
[400571770,1767729038770,-833.85207825,0.00012623,2]
[400571773,1767729038782,-833.85207825,0.00012623,2]
[400571775,1767729038793,-833.85207825,0.00012623,2]
[400571777,1767729038804,-844.27522921,0.00012623,2]
[400571779,1767729038817,-844.27522921,0.00012623,2]
[400571781,1767729038830,-844.27522921,0.00012623,2]
[400571784,1767729038840,-844.27522921,0.00012623,2]
[400571786,1767729038851,-844.27522921,0.00012623,2]